bitfinex/quotes_SOLUSD_20250417
["timestamp","ask_amount","ask_price","bid_price","bid_amount"]
[1744933573688,0.063,134.35,134.34,34.83998995]
[1744933575893,0.063,134.35,134.34,34.69782838]
[1744933581212,0.063,134.35,134.29,1.6342]
[1744933581377,8.76082838,134.35,134.28,82.9]
[1744933581705,0.063,134.35,134.31,8.69782838]
[1744933584485,26.11435838,134.35,134.31,8.69782838]
[1744933586002,26.11435838,134.35,134.3,26.0]
[1744933586187,34.81218676,134.35,134.31,8.69782838]
[1744933586386,34.81218676,134.35,134.3,34.69782838]
[1744933588096,34.81218676,134.35,134.31,8.69782838]
[1744933588392,26.11435838,134.35,134.31,8.69782838]
[1744933593710,34.81218676,134.35,134.31,8.69782838]
[1744933594306,8.69782838,134.33,134.29,8.69782838]
[1744933594610,8.69782838,134.33,134.28,8.69782838]
[1744933594993,8.69782838,134.33,134.29,8.69782838]
[1744933595811,26.05717688,134.32,134.29,8.69782838]
[1744933598596,33.99117688,134.32,134.28,8.69782838]
[1744933599531,42.68900526,134.32,134.27,8.69782838]
[1744933599716,42.68900526,134.32,134.26,23.33782838]
[1744933599717,8.69782838,134.31,134.26,23.33782838]
[1744933600393,2.77445229,134.3,134.26,23.33782838]
[1744933600815,34.76082636,134.29,134.25,0.03]
[1744933600997,34.76082636,134.29,134.25,8.72782838]
[1744933601706,34.76082636,134.29,134.25,0.03]
[1744933602418,34.76082636,134.29,134.25,8.72782838]
[1744933602620,26.06299798,134.29,134.25,8.72782838]
[1744933604528,26.06299798,134.29,134.25,0.03]
[1744933604714,26.06299798,134.29,134.25,8.72782838]
[1744933605830,26.06299798,134.29,134.26,8.69782838]
[1744933606706,26.06299798,134.29,134.28,8.69782838]
[1744933607704,26.05911696,134.31,134.28,8.69782838]
[1744933608206,26.05911696,134.31,134.27,8.69782838]
[1744933609726,7.44490768,134.32,134.3,8.69782838]
[1744933609926,26.05717688,134.32,134.29,8.69782838]
[1744933613328,26.05717688,134.32,134.3,8.69782838]
[1744933613631,7.44490768,134.32,134.31,8.69782838]
[1744933614632,26.05348821,134.34,134.3,8.69782838]
[1744933620318,34.75131659,134.34,134.29,26.0]
[1744933620512,34.75131659,134.34,134.3,8.69782838]
[1744933622145,8.69782838,134.33,134.28,8.69782838]
[1744933622342,26.05717688,134.32,134.28,34.69782838]
[1744933622644,26.05717688,134.32,134.3,8.69782838]
[1744933624849,26.05329759,134.34,134.3,8.69782838]
[1744933625233,2.7758576,134.33,134.3,8.69782838]
[1744933626040,7.44490768,134.32,134.3,8.69782838]
[1744933626649,7.44490768,134.32,134.29,8.69782838]
[1744933626950,7.44490768,134.32,134.28,34.69782838]
[1744933627645,34.75500526,134.32,134.27,8.69782838]
[1744933627837,8.69782838,134.28,134.25,14.69]
[1744933628024,8.69782838,134.28,134.25,0.03]
[1744933628025,7.44768004,134.27,134.25,0.03]
[1744933628226,16.14550842,134.27,134.25,0.03]
[1744933629356,7.44768004,134.27,134.25,0.03]
[1744933631228,7.44768004,134.27,134.25,8.72782838]
[1744933631728,7.44768004,134.27,134.25,0.03]
[1744933632142,7.44768004,134.27,134.25,8.72782838]
[1744933632734,18.61792352,134.28,134.25,8.72782838]
[1744933633648,26.06504892,134.28,134.25,0.03]
[1744933633826,2.77621464,134.27,134.25,0.03]
[1744933634446,11.47404302,134.27,134.25,0.03]
[1744933634645,8.69782838,134.27,134.25,0.03]
[1744933634935,34.7628773,134.28,134.25,0.03]
[1744933635832,18.61792352,134.28,134.25,0.03]
[1744933636034,18.61792352,134.28,134.25,8.72782838]
[1744933637561,27.3157519,134.28,134.25,0.03]
[1744933637857,27.34747724,134.27,134.25,0.03]
[1744933638057,7.44823476,134.26,134.25,0.03]
[1744933638463,10.22377448,134.26,134.25,0.03]
[1744933639842,18.92160286,134.26,134.25,0.03]
[1744933640966,10.22377448,134.26,134.25,0.03]
[1744933642273,7.44823476,134.26,134.25,8.72782838]
[1744933643443,18.61792352,134.28,134.25,8.72782838]
[1744933646170,26.06504892,134.28,134.25,8.72782838]
[1744933648068,26.06504892,134.28,134.25,0.03]
[1744933652558,18.61792352,134.28,134.25,0.03]
[1744933654668,26.06504892,134.28,134.25,0.03]
[1744933655362,26.06504892,134.28,134.25,8.72782838]
[1744933656279,7.4471254,134.28,134.27,8.69782838]
[1744933656778,26.06047593,134.31,134.27,8.69782838]
[1744933657080,26.06047593,134.31,134.28,8.69782838]
[1744933660177,26.06047593,134.31,134.25,26.03]
[1744933660373,27.34747724,134.3,134.26,8.69782838]
[1744933660561,30.1201982,134.3,134.25,8.72782838]
[1744933660760,8.69782838,134.29,134.25,0.03]
[1744933661879,26.06493892,134.28,134.25,0.03]
[1744933662254,8.69782838,134.27,134.25,0.03]
[1744933663272,7.44823476,134.26,134.25,0.03]
[1744933665459,7.44768004,134.27,134.25,0.03]
[1744933668176,2.77730973,134.26,134.25,0.03]
[1744933669481,10.22554449,134.26,134.25,0.03]
[1744933671986,10.22554449,134.26,134.25,8.72782838]
[1744933672484,7.44823476,134.26,134.25,8.72782838]
[1744933673686,26.06493892,134.28,134.25,8.72782838]
[1744933673989,2.78377846,134.27,134.25,8.72782838]
[1744933674791,26.06493892,134.28,134.25,8.72782838]
[1744933676985,7.44823476,134.26,134.25,8.72782838]
[1744933678195,26.06493892,134.28,134.25,8.72782838]
[1744933680188,7.44823476,134.26,134.25,8.72782838]
[1744933682400,26.06493892,134.28,134.25,8.72782838]
[1744933682695,2.78343568,134.27,134.25,8.72782838]
[1744933683402,26.06493892,134.28,134.25,8.72782838]
[1744933684697,26.06493892,134.28,134.26,8.69782838]
[1744933685202,2.78365481,134.27,134.25,8.72782838]
[1744933685802,26.06493892,134.28,134.25,8.72782838]
[1744933687701,7.4471254,134.28,134.27,8.69782838]
[1744933687885,7.44601638,134.3,134.27,8.69782838]
[1744933688089,7.44601638,134.3,134.29,8.69782838]
[1744933688300,7.44490768,134.32,134.29,8.69782838]
[1744933688608,7.44490768,134.32,134.31,8.69782838]
[1744933689621,26.05466997,134.34,134.31,8.69782838]
[1744933689808,26.05466997,134.34,134.33,8.69782838]
[1744933691392,0.063,134.35,134.33,8.69782838]
[1744933692796,0.063,134.35,134.32,8.69782838]
[1744933692999,8.76082838,134.35,134.31,8.69782838]
[1744933693198,8.76082838,134.35,134.3,8.69782838]
[1744933693398,18.64964886,134.34,134.3,8.69782838]
[1744933693605,27.34747724,134.34,134.3,8.69782838]
[1744933693911,15.28382838,134.33,134.28,8.69782838]
[1744933694211,8.69782838,134.29,134.25,0.03]
[1744933694598,27.5314,134.32,134.26,8.69782838]
[1744933694599,27.34747724,134.31,134.26,8.69782838]
[1744933694792,8.69782838,134.28,134.25,0.03]
[1744933694989,27.34747724,134.26,134.25,1e-08]
[1744933696317,34.795712,134.26,134.25,1e-08]
[1744933696613,26.09788362,134.26,134.25,1e-08]
[1744933698611,7.44823476,134.26,134.25,1e-08]
[1744933702097,7.44768004,134.27,134.25,1e-08]
[1744933702498,7.44768004,134.27,134.25,8.69782839]
[1744933702720,7.44768004,134.27,134.25,1e-08]
[1744933703722,8.69782838,134.26,134.25,1e-08]
[1744933704225,16.14606314,134.26,134.25,1e-08]
[1744933704927,7.44823476,134.26,134.25,1e-08]
[1744933705111,16.14606314,134.26,134.25,1e-08]
[1744933706429,16.14550842,134.27,134.25,1e-08]
[1744933706823,7.44768004,134.27,134.26,8.69782838]
[1744933707022,7.44546199,134.31,134.26,43.4891419]
[1744933707226,7.44546199,134.31,134.3,8.69782838]
[1744933708332,26.05911696,134.31,134.29,8.69782838]
[1744933709208,26.05911696,134.31,134.29,13.64598725]
[1744933710932,26.05911696,134.31,134.25,1e-08]
[1744933711138,18.64964886,134.3,134.26,13.64598725]
[1744933711342,18.64964886,134.3,134.27,13.64598725]
[1744933712222,7.44657085,134.29,134.27,13.64598725]
[1744933712917,26.06299798,134.29,134.25,1e-08]
[1744933713114,26.06299798,134.29,134.27,13.64598725]
[1744933715237,26.06299798,134.29,134.26,13.64598725]
[1744933717417,26.06299798,134.29,134.27,13.64598725]
[1744933717616,7.44657085,134.29,134.28,13.64598725]
[1744933719741,26.05915546,134.31,134.28,13.64598725]
[1744933725024,18.64964886,134.3,134.25,26.00000001]
[1744933725225,32.29563611,134.3,134.26,13.64598725]
[1744933725439,18.64964886,134.3,134.27,13.64598725]
[1744933725742,26.05915546,134.31,134.28,13.64598725]
[1744933729153,26.05915546,134.31,134.28,8.73516768]
[1744933729751,26.05915546,134.31,134.25,26.00000001]
[1744933729942,26.05915546,134.31,134.28,8.73516768]
[1744933742558,26.05915546,134.31,134.27,8.73516768]
[1744933743660,34.79432314,134.31,134.27,8.73516768]
[1744933744550,27.38481654,134.3,134.25,8.73516769]
[1744933744756,8.73516768,134.29,134.25,1e-08]
[1744933744958,20.18254886,134.3,134.27,8.73516768]
[1744933745657,1.5329,134.3,134.27,8.73516768]
[1744933745956,26.05915546,134.31,134.27,8.73516768]
[1744933746443,34.79432314,134.31,134.26,8.73516768]
[1744933748153,8.73516768,134.29,134.25,1e-08]
[1744933748862,28.99031654,134.28,134.25,1e-08]
[1744933749453,7.44768004,134.27,134.25,1e-08]
[1744933750364,8.73516768,134.26,134.25,1e-08]
[1744933750565,7.44768004,134.27,134.25,1e-08]
[1744933750566,16.18284772,134.27,134.25,1e-08]
[1744933763885,7.44768004,134.27,134.25,1e-08]
[1744933768686,16.18284772,134.27,134.25,1e-08]
[1744933770583,53.45363822,134.26,134.22,0.03]
[1744933770780,8.73516768,134.24,134.22,0.03]
[1744933770984,8.73516768,134.25,134.22,0.03]
[1744933772085,7.44934445,134.24,134.22,0.03]
[1744933772291,7.44934445,134.24,134.23,8.73516768]
[1744933772791,7.44934445,134.24,134.22,8.76516768]
[1744933773589,7.44934445,134.24,134.22,0.03]
[1744933774370,16.18451213,134.24,134.22,1e-08]
[1744933775171,7.44934445,134.24,134.22,1e-08]
[1744933775372,16.18451213,134.24,134.22,1e-08]
[1744933776272,7.44934445,134.24,134.22,1e-08]
[1744933779198,16.18451213,134.24,134.22,1e-08]
[1744933780696,34.83471596,134.23,134.21,1e-08]
[1744933780875,8.73516768,134.22,134.2,1e-08]
[1744933781084,8.73516768,134.21,134.2,1e-08]
[1744933781273,50.99234886,134.2,134.19,1e-08]
[1744933781472,59.72751654,134.2,134.14,8.73516768]
[1744933781777,8.73516768,134.18,134.14,8.73516768]
[1744933782294,8.73516768,134.17,134.09,0.03]
[1744933782477,8.73516768,134.17,134.13,8.73516768]
[1744933782673,26.08825282,134.16,134.13,8.73516768]
[1744933783178,26.08825282,134.16,134.1,26.0]
[1744933783386,26.08825282,134.16,134.13,8.73516768]
[1744933785105,26.08825282,134.16,134.14,8.73516768]
[1744933786409,7.45378652,134.16,134.15,8.73516768]
[1744933786588,46.01649861,134.19,134.15,8.73516768]
[1744933786589,7.45267551,134.18,134.15,8.73516768]
[1744933786788,7.45267551,134.18,134.17,8.73516768]
[1744933787099,18.64964886,134.21,134.17,8.73516768]
[1744933787100,7.45100961,134.21,134.17,8.73516768]
[1744933787299,7.45100961,134.21,134.2,8.73516768]
[1744933787984,18.62733999,134.22,134.2,8.73516768]
[1744933788399,18.62733999,134.22,134.21,8.73516768]
[1744933789106,18.62733999,134.22,134.2,8.73516768]
[1744933789604,18.62733999,134.22,134.21,8.73516768]
[1744933789813,7.44989942,134.23,134.21,8.73516768]
[1744933790103,26.09899331,134.24,134.21,8.73516768]
[1744933790290,7.44934445,134.24,134.22,8.73516768]
[1744933792007,26.07270559,134.24,134.21,8.73516768]
[1744933796303,26.07270559,134.24,134.2,8.73516768]
[1744933797911,34.80787327,134.24,134.19,8.73516768]
[1744933798111,27.38481654,134.23,134.19,8.73516768]
[1744933798622,26.07659066,134.22,134.19,8.73516768]
[1744933798995,26.07659066,134.22,134.15,26.0]
[1744933799197,26.07659066,134.22,134.18,8.73516768]
[1744933799714,26.07659066,134.22,134.19,8.73516768]
[1744933801012,26.07659066,134.22,134.2,8.73516768]
[1744933801195,7.45045447,134.22,134.21,8.73516768]
[1744933801812,7.45045447,134.22,134.2,8.73516768]
[1744933803117,26.0728109,134.24,134.2,8.73516768]
[1744933809827,7.44934445,134.24,134.22,8.73516768]
[1744933810032,7.44934445,134.24,134.23,8.73516768]
[1744933810905,26.06882168,134.26,134.23,8.73516768]
[1744933813828,26.06882168,134.26,134.22,8.73516768]
[1744933814329,34.80398936,134.26,134.21,8.73516768]
[1744933815522,27.38481654,134.25,134.18,1.6318]
[1744933815823,27.38481654,134.25,134.2,8.73516768]
[1744933816927,8.73516768,134.24,134.2,8.73516768]
[1744933817330,8.73516768,134.23,134.19,8.73516768]
[1744933817534,26.07659066,134.22,134.18,8.73516768]
[1744933817727,26.07659066,134.22,134.19,8.73516768]
[1744933818430,7.45045447,134.22,134.2,8.73516768]
[1744933818833,63.24117384,134.26,134.21,8.73516768]
[1744933818834,26.06884246,134.26,134.21,8.73516768]
[1744933819028,26.06884246,134.26,134.23,8.73516768]
[1744933820131,26.06884246,134.26,134.24,8.73516768]
[1744933820322,7.44823476,134.26,134.25,8.73516768]
[1744933820528,7.4471254,134.28,134.25,8.73516768]
[1744933820720,7.4471254,134.28,134.27,8.73516768]
[1744933821521,18.61739925,134.29,134.27,8.73516768]
[1744933821824,7.50901638,134.3,134.28,8.73516768]
[1744933822022,7.50901638,134.3,134.29,8.73516768]
[1744933822714,0.063,134.3,134.29,8.73516768]
[1744933824013,0.063,134.3,134.29,9.16165239]
[1744933824317,0.063,134.3,134.29,8.87732925]
[1744933827135,0.063,134.31,134.3,18.64964886]
[1744933827323,0.063,134.33,134.32,26.28432314]
[1744933827635,0.063,134.34,134.33,0.42648471]
[1744933827824,0.063,134.34,134.33,44.10232311]
[1744933828216,7.50496849,134.38,134.33,62.75197197]
[1744933828416,7.50496849,134.38,134.36,8.73516768]
[1744933829041,0.063,134.38,134.36,8.73516768]
[1744933832146,0.063,134.38,134.35,8.73516768]
[1744933834437,0.063,134.38,134.3,26.0]
[1744933834438,8.79816768,134.37,134.3,26.0]
[1744933834630,8.73516768,134.36,134.32,8.73516768]
[1744933836855,26.05135838,134.35,134.32,8.73516768]
[1744933843452,26.11048083,134.37,134.32,8.73516768]
[1744933843643,34.84564851,134.37,134.32,8.73516768]
[1744933844445,34.84564851,134.37,134.33,8.73516768]
[1744933845226,26.11048083,134.37,134.36,8.73516768]
[1744933845548,7.50513738,134.37,134.36,8.73516768]
[1744933847930,0.063,134.37,134.36,8.73516768]
[1744933855259,0.063,134.37,134.35,8.73516768]
[1744933855961,0.063,134.37,134.36,8.73516768]
[1744933857357,0.063,134.37,134.36,8.87732925]
[1744933857540,0.063,134.38,134.36,9.16165239]
[1744933857745,0.063,134.38,134.37,9.16165239]
[1744933857940,0.063,134.39,134.37,8.87732925]
[1744933858154,0.063,134.39,134.38,8.87732925]
[1744933863360,0.063,134.4,134.39,0.14216157]
[1744933863562,0.063,134.42,134.41,18.64964886]
[1744933863781,0.063,134.43,134.42,0.28432314]
[1744933863986,0.063,134.43,134.42,35.01949082]
[1744933864480,0.063,134.43,134.42,73.81130125]
[1744933864692,0.063,134.46,134.44,45.77056974]
[1744933864861,0.063,134.46,134.44,43.78165239]
[1744933865256,0.063,134.46,134.44,48.65462341]
[1744933866285,0.063,134.46,134.44,28.37030027]
[1744933867459,0.063,134.46,134.44,28.65462341]
[1744933869579,0.063,134.46,134.45,0.28432314]
[1744933869755,0.03,134.47,134.45,47.64276211]
[1744933869962,0.03,134.47,134.46,53.50060054]
[1744933870464,0.03,134.48,134.47,0.28432314]
[1744933870779,0.03,134.49,134.48,0.14216157]
[1744933870982,0.03,134.49,134.48,13.75030027]
[1744933871355,0.03,134.49,134.48,40.03462341]
[1744933873384,0.03,134.5,134.49,0.28432314]
[1744933873582,0.03,134.53,134.5,0.14216157]
[1744933873784,0.03,134.53,134.5,14.03462341]
[1744933874492,0.03,134.53,134.5,13.6081387]
[1744933874675,15.3154387,134.51,134.44,82.9]
[1744933874864,1.7073,134.51,134.48,13.6081387]
[1744933875063,15.3154387,134.51,134.47,13.6081387]
[1744933875283,7.43494423,134.5,134.48,13.6081387]
[1744933877970,7.43494423,134.5,134.49,13.6081387]
[1744933883390,0.063,134.51,134.49,13.6081387]
[1744933883596,0.063,134.51,134.5,13.6081387]
[1744933885298,0.063,134.51,134.5,8.70598602]
[1744933888902,0.063,134.51,134.48,0.14216157]
[1744933889093,0.063,134.51,134.5,8.70598602]
[1744933889893,0.063,134.51,134.47,34.70598602]
[1744933890195,7.49739149,134.51,134.48,8.70598602]
[1744933890401,7.49739149,134.51,134.47,34.70598602]
[1744933891486,26.08337022,134.51,134.47,34.70598602]
[1744933891687,26.08337022,134.51,134.48,8.70598602]
[1744933892102,26.08337022,134.51,134.45,0.14216157]
[1744933892293,26.08337022,134.51,134.48,8.70598602]
[1744933897093,7.49739149,134.51,134.49,8.70598602]
[1744933897400,7.49739149,134.51,134.5,8.70598602]
[1744933898305,0.063,134.51,134.5,8.70598602]
[1744933899013,0.063,134.51,134.49,8.70598602]
[1744933899911,0.063,134.51,134.5,8.70598602]
[1744933905217,0.063,134.51,134.49,8.70598602]
[1744933907621,0.063,134.51,134.48,8.70598602]
[1744933907808,0.063,134.51,134.49,8.70598602]
[1744933910213,0.063,134.51,134.5,8.70598602]
[1744933918036,0.063,134.51,134.5,34.84814759]
[1744933918210,0.03,134.53,134.52,0.14216157]
[1744933918416,0.03,134.53,134.52,9.13247073]
[1744933918813,0.03,134.53,134.52,8.84814759]
[1744933919107,0.03,134.53,134.52,8.70598602]
[1744933922132,0.03,134.53,134.52,8.84814759]
[1744933922342,0.03,134.53,134.52,9.13247073]
[1744933923250,0.03,134.53,134.52,34.47257454]
[1744933924142,0.03,134.53,134.52,27.78211959]
[1744933924625,0.03,134.53,134.52,9.13247073]
[1744933925656,0.03,134.53,134.52,35.13247073]
[1744933925842,0.03,134.53,134.52,34.47257454]
[1744933928341,0.03,134.53,134.52,152.19651862]
[1744933928639,0.03,134.56,134.55,8.99030916]
[1744933928944,0.03,134.56,134.55,34.70598602]
[1744933929147,0.03,134.56,134.55,34.84814759]
[1744933930142,0.03,134.56,134.55,8.84814759]
[1744933930957,0.03,134.56,134.55,9.13247073]
[1744933937742,0.03,134.57,134.56,35.13247073]
[1744933937944,0.03,134.57,134.56,73.78211959]
[1744933940060,0.03,134.57,134.56,163.3705857]
[1744933940248,0.03,134.57,134.56,173.11097785]
[1744933940648,0.03,134.59,134.58,64.79181043]
[1744933940841,0.03,134.59,134.58,54.84814759]
[1744933941043,0.03,134.59,134.58,46.42648471]
[1744933941251,0.03,134.59,134.58,55.13247073]
[1744933942371,0.03,134.59,134.58,137.36959172]
[1744933943829,0.03,134.61,134.6,64.64964886]
[1744933944031,0.03,134.61,134.6,94.8042749]
[1744933944449,0.03,134.61,134.6,88.11779645]
[1744933945157,0.03,134.61,134.6,69.75247073]
[1744933947864,0.03,134.61,134.6,88.40211959]
[1744933948773,0.03,134.61,134.6,123.22606367]
[1744933949562,0.03,134.61,134.6,129.91254212]
[1744933950157,0.03,134.61,134.6,212.81254212]
[1744933950563,0.03,134.61,134.6,171.30211959]
[1744933950751,0.03,134.61,134.6,54.70598602]
[1744933950952,0.03,134.61,134.6,8.70598602]
[1744933951166,0.03,134.61,134.6,9.13247073]
[1744933951667,0.03,134.61,134.6,35.13247073]
[1744933952375,0.03,134.61,134.6,9.13247073]
[1744933952872,0.03,134.61,134.6,34.84814759]
[1744933954275,0.03,134.61,134.6,35.13247073]
[1744933955569,0.03,134.61,134.6,73.78211959]
[1744933957760,0.03,134.61,134.6,47.78211959]
[1744933958675,0.03,134.61,134.6,54.46859804]
[1744933959274,0.03,134.61,134.6,47.78211959]
[1744933968685,0.03,134.61,134.6,62.40211959]
[1744933973673,0.03,134.61,134.6,49.46814759]
[1744933976699,0.03,134.61,134.6,49.32598602]
[1744933978572,0.03,134.61,134.6,49.46814759]
[1744933980195,0.03,134.61,134.6,103.22606367]
[1744933980399,0.03,134.61,134.6,123.22606367]
[1744933980588,0.03,134.61,134.6,88.40211959]
[1744933981093,0.03,134.61,134.6,69.75247073]
[1744933987003,0.03,134.61,134.6,62.40211959]
[1744933987307,0.03,134.61,134.6,97.22606367]
[1744933990211,0.03,134.61,134.6,43.75247073]
[1744933990387,0.03,134.61,134.6,23.75247073]
[1744933990582,0.03,134.61,134.6,23.32598602]
[1744933997494,0.03,134.61,134.6,8.70598602]
[1744934002302,0.03,134.61,134.57,14.62]
[1744934002303,1.5437,134.61,134.57,14.62]
[1744934002620,1.5437,134.61,134.58,8.70598602]
[1744934003415,1.5137,134.58,134.53,8.76898602]
[1744934003627,8.70598602,134.57,134.53,34.76898602]
[1744934003790,1.5137,134.58,134.55,8.70598602]
[1744934003994,1.5137,134.58,134.57,8.70598602]
[1744934004422,8.94422459,134.58,134.57,8.70598602]
[1744934005319,8.94422459,134.58,134.56,8.70598602]
[1744934009924,8.94422459,134.58,134.57,8.70598602]
[1744934011030,7.43052459,134.58,134.57,8.70598602]
[1744934012133,7.4299725,134.59,134.57,8.70598602]
[1744934012315,7.4299725,134.59,134.58,8.70598602]
[1744934016153,20.11620385,134.61,134.58,8.70598602]
[1744934016154,8.97270254,134.61,134.58,8.70598602]
[1744934016303,7.45900254,134.61,134.6,8.70598602]
[1744934016507,0.03,134.61,134.6,8.70598602]
[1744934024833,0.03,134.61,134.59,8.70598602]
[1744934025736,0.03,134.61,134.58,8.70598602]
[1744934027133,0.03,134.61,134.59,8.70598602]
[1744934040351,0.03,134.61,134.57,26.14216157]
[1744934040651,0.03,134.61,134.6,26.0]
[1744934040830,0.03,134.61,134.6,34.70598602]
[1744934043865,0.03,134.61,134.6,80.46859804]
[1744934044160,0.03,134.65,134.63,45.07613357]
[1744934044345,0.03,134.65,134.64,8.99030916]
[1744934045063,0.03,134.65,134.64,8.84814759]
[1744934049954,0.03,134.65,134.64,9.13247073]
[1744934051652,0.03,134.65,134.64,54.46661156]
[1744934053457,0.03,134.65,134.64,47.78211959]
[1744934055559,0.03,134.65,134.64,29.13247073]
[1744934056240,0.03,134.65,134.64,47.78211959]
[1744934057466,0.03,134.65,134.64,54.46661156]
[1744934058471,0.03,134.65,134.64,47.78211959]
[1744934062566,0.03,134.65,134.64,29.13247073]
[1744934076478,0.03,134.65,134.64,43.73247073]
[1744934080165,0.03,134.65,134.64,62.38211959]
[1744934081458,0.03,134.65,134.64,69.06661156]
[1744934085496,0.03,134.65,134.64,151.96661156]
[1744934086985,0.03,134.65,134.64,144.99779645]
[1744934087294,0.03,134.65,134.64,145.28211959]
[1744934091498,0.03,134.65,134.64,126.63247073]
[1744934092503,0.03,134.65,134.64,109.04216157]
[1744934092802,0.03,134.65,134.64,91.74814759]
[1744934092985,0.03,134.65,134.64,117.74814759]
[1744934093387,0.03,134.65,134.64,34.84814759]
[1744934095474,0.03,134.65,134.64,34.70598602]
[1744934095706,0.03,134.65,134.64,26.0]
[1744934101682,0.03,134.65,134.62,8.70598602]
[1744934103407,0.03,134.65,134.63,8.70598602]
[1744934105690,0.03,134.65,134.61,26.0]
[1744934105896,0.03,134.65,134.62,26.0]
[1744934106085,0.03,134.65,134.62,34.70598602]
[1744934108815,0.03,134.65,134.63,8.70598602]
[1744934109020,8.70598602,134.64,134.6,26.0]
[1744934109197,8.70598602,134.61,134.58,0.063]
[1744934109391,7.8282,134.6,134.58,0.063]
[1744934110618,7.4299725,134.59,134.58,0.063]
[1744934114419,7.4299725,134.59,134.58,8.76898602]
[1744934114800,7.4299725,134.59,134.58,0.063]
[1744934122307,7.4299725,134.59,134.58,8.76898602]
[1744934124321,25.99717744,134.63,134.58,8.76898602]
[1744934124513,25.99717744,134.63,134.6,8.70598602]
[1744934125426,25.99717744,134.63,134.61,8.70598602]
[1744934126019,25.99717744,134.63,134.6,8.70598602]
[1744934127325,25.99717744,134.63,134.59,8.70598602]
[1744934128425,7.42776498,134.63,134.61,8.70598602]
[1744934128619,7.42776498,134.63,134.62,8.70598602]
[1744934130234,0.03,134.65,134.62,8.70598602]
[1744934130531,0.03,134.65,134.63,8.70598602]
[1744934136135,0.03,134.65,134.64,8.70598602]
[1744934137122,0.03,134.65,134.63,8.70598602]
[1744934137636,0.03,134.65,134.64,8.70598602]
[1744934141025,0.03,134.65,134.6,0.14216157]
[1744934141251,0.03,134.65,134.63,8.70598602]
[1744934143544,0.03,134.65,134.6,0.14216157]
[1744934143749,0.03,134.65,134.62,8.70598602]
[1744934148238,0.03,134.65,134.6,0.14216157]
[1744934148540,8.70598602,134.63,134.58,23.36898602]
[1744934148722,8.70598602,134.62,134.58,23.36898602]
[1744934148918,8.70598602,134.62,134.58,8.76898602]
[1744934149840,8.70598602,134.63,134.58,8.76898602]
[1744934150046,8.70598602,134.63,134.59,8.70598602]
[1744934150649,25.99910859,134.62,134.58,0.063]
[1744934150833,34.70509461,134.62,134.58,0.063]
[1744934152049,34.70509461,134.62,134.58,8.76898602]
[1744934152352,25.99910859,134.62,134.58,8.76898602]
[1744934155753,25.99910859,134.62,134.59,8.70598602]
[1744934156342,34.70509461,134.62,134.58,8.76898602]
[1744934158046,25.99910859,134.62,134.58,8.76898602]
[1744934160942,25.99910859,134.62,134.59,8.70598602]
[1744934164944,25.99910859,134.62,134.6,8.70598602]
[1744934165149,25.99910859,134.62,134.61,8.70598602]
[1744934166275,18.57079185,134.62,134.61,8.70598602]
[1744934166438,18.57079185,134.62,134.6,8.70598602]
[1744934176146,7.42776498,134.63,134.6,8.70598602]
[1744934176761,7.42776498,134.63,134.61,8.70598602]
[1744934179354,7.42776498,134.63,134.62,8.70598602]
[1744934181293,0.03,134.65,134.62,8.70598602]
[1744934181476,0.03,134.65,134.63,8.70598602]
[1744934181772,0.03,134.65,134.62,8.70598602]
[1744934186879,0.03,134.65,134.6,26.0]
[1744934187077,0.03,134.65,134.62,8.70598602]
[1744934188088,0.03,134.65,134.6,26.0]
[1744934188278,0.03,134.65,134.61,8.70598602]
[1744934189393,8.73598602,134.65,134.61,8.70598602]
[1744934189578,25.99524657,134.64,134.61,8.70598602]
[1744934192194,8.70598602,134.62,134.58,0.063]
[1744934192805,8.70598602,134.6,134.58,1e-08]
[1744934193004,14.87748602,134.59,134.58,1e-08]
[1744934194212,22.30745852,134.59,134.58,1e-08]
[1744934195410,13.6014725,134.59,134.58,1e-08]
[1744934196320,22.30745852,134.59,134.58,1e-08]
[1744934197119,40.95710738,134.59,134.57,1e-08]
[1744934197306,8.70598602,134.58,134.57,1e-08]
[1744934197916,40.95710738,134.59,134.57,1e-08]
[1744934202317,8.70598602,134.57,134.55,1e-08]
[1744934202608,18.64964886,134.55,134.53,1e-08]
[1744934202809,20.22334886,134.53,134.5,1e-08]
[1744934203001,8.70598602,134.51,134.5,1e-08]